Workbook

Sheet TRANSP
A1: Wykaz środków trwałych przypadającej spółce nowo zawiązanej zwiazanych z działalnością POLMEX w zakresie transportu
C3: STAN NA 01.11.2012 R. | E3: Załacznik Nr 10.3
A5: SkłAktTrw | B5: Data akt. | C5: Oznaczenie aktywów trwałych | D5: WartPocz | E5: Umorzenie | F5: WartKsIęgowa | G5: Wal.
A7: 400056 | B7: 31.01.2011 | C7: Kom. pokładowy KN 58199 | D7: 7771.6 | E7: -3885.8 | F7: 3885.8 | G7: PLN
A8: 400057 | B8: 31.01.2011 | C8: Kom. pokładowy KN 53620 | D8: 7771.6 | E8: -3885.8 | F8: 3885.8 | G8: PLN
A9: 400058 | B9: 31.01.2011 | C9: Kom. pokładowy KN 19273 | D9: 7771.6 | E9: -3885.8 | F9: 3885.8 | G9: PLN
A10: 400059 | B10: 31.01.2011 | C10: Kom. pokładowy KN 33521 | D10: 7771.6 | E10: -3885.8 | F10: 3885.8 | G10: PLN
A11: 400060 | B11: 31.01.2011 | C11: Kom. pokładowy KN 28109 | D11: 7771.6 | E11: -3885.8 | F11: 3885.8 | G11: PLN
A12: 400062 | B12: 29.07.2011 | C12: Komputer pokladowy KN 61565 | D12: 8715.02 | E12: -3268.14 | F12: 5446.88 | G12: PLN
A13: 400063 | B13: 29.07.2011 | C13: Komputer pokladowy KN 38518 | D13: 8715.03 | E13: -3268.14 | F13: 5446.89 | G13: PLN
A14: 400064 | B14: 29.07.2011 | C14: Komputer pokladowy KN 53189 | D14: 8715.02 | E14: -3268.14 | F14: 5446.88 | G14: PLN
A15: 400065 | B15: 29.07.2011 | C15: Komputer pokladowy KN 56871 | D15: 8715.02 | E15: -3268.14 | F15: 5446.88 | G15: PLN
A16: 400066 | B16: 29.07.2011 | C16: Komputer pokladowy KN 49956 | D16: 8715.02 | E16: -3268.14 | F16: 5446.88 | G16: PLN
A17: 400067 | B17: 31.08.2011 | C17: Komputer pokladowy KN 32315 | D17: 8159.25 | E17: -2855.75 | F17: 5303.5 | G17: PLN
A18: 400068 | B18: 31.08.2011 | C18: Komputer pokladowy KN 38474 | D18: 8159.25 | E18: -2855.75 | F18: 5303.5 | G18: PLN
A19: 400069 | B19: 31.08.2011 | C19: Komputer pokladowy KN 49127 | D19: 8159.25 | E19: -2855.75 | F19: 5303.5 | G19: PLN
A20: 400070 | B20: 31.08.2011 | C20: Komputer pokladowy KN 61871 | D20: 8159.25 | E20: -2855.75 | F20: 5303.5 | G20: PLN
A21: 400071 | B21: 31.08.2011 | C21: Komputer pokladowy KN 62078 | D21: 8159.25 | E21: -2855.75 | F21: 5303.5 | G21: PLN
A22: 400072 | B22: 30.09.2011 | C22: Komputer pokladowy KN 63416 | D22: 8711.32 | E22: -2831.18 | F22: 5880.14 | G22: PLN
A23: 400074 | B23: 30.12.2011 | C23: Komputer pokladowy KN 64373 | D23: 9186.62 | E23: -2296.66 | F23: 6889.96 | G23: PLN
A24: 400076 | B24: 31.01.2012 | C24: Komputer pokładowy KN 64754 | D24: 8817.23 | E24: -1983.88 | F24: 6833.35 | G24: PLN
A25: 400077 | B25: 12.04.2012 | C25: Komputer pokładowy KN 66012 | D25: 8556.76 | E25: -1283.52 | F25: 7273.24 | G25: PLN
A26: 400078 | B26: 31.10.2012 | C26: Komputer pokładowy KN 65723 | D26: 9005.71 | E26: 0 | F26: 9005.71 | G26: PLN
A28: Grupa akt. trw. SW04 Maszyny ogóln. zasto | D28: 167507 | E28: -58443.69 | F28: 109063.31 | G28: PLN
A31: SkłAktTrw | B31: Data akt. | C31: Oznaczenie aktywów trwałych | D31: WartPocz | E31: Umorzenie | F31: WartKs | G31: Wal.
A33: 700017 | B33: 05.12.2001 | C33: NACZEPA CHŁODNIAKOGEL | D33: 70146 | E33: -70146 | F33: 0 | G33: PLN
A34: 700024 | B34: 11.04.2002 | C34: NACZEPA KOGEL | D34: 100037 | E34: -100037 | F34: 0 | G34: PLN
A35: 700026 | B35: 18.12.2002 | C35: CIAGNIK SIODŁOWY KN-13637 | D35: 279091.2 | E35: -279091.2 | F35: 0 | G35: PLN
A36: 700027 | B36: 27.12.2002 | C36: SKANIA-CIAGNIK SIODŁOWY | D36: 277449 | E36: -277449 | F36: 0 | G36: PLN
A37: 700030 | B37: 26.06.2003 | C37: SKANIA-KN-15649 | D37: 339317.5 | E37: -339317.5 | F37: 0 | G37: PLN
A38: 700031 | B38: 03.07.2003 | C38: SKANIA KN-15732 | D38: 337074.7 | E38: -337074.7 | F38: 0 | G38: PLN
A39: 700032 | B39: 08.07.2003 | C39: NACZEPACHŁODNIA-SCHMID | D39: 161762.19 | E39: -161762.19 | F39: 0 | G39: PLN
A40: 700033 | B40: 08.07.2003 | C40: NACZEPA-CHŁODNIA SCHMITZ | D40: 161762.19 | E40: -161762.19 | F40: 0 | G40: PLN
A41: 700046 | B41: 09.02.2004 | C41: NACZEPA SCHMIDT KN 0890 P | D41: 168145.5 | E41: -168145.5 | F41: 0 | G41: PLN
A42: 700052 | B42: 08.03.2004 | C42: NACZEPA SCHMIDT KN 0881 P | D42: 183083.3 | E42: -183083.3 | F42: 0 | G42: PLN
A43: 700062 | B43: 20.05.2004 | C43: NACZEPA KN 0931P | D43: 228844.52 | E43: -228844.52 | F43: 0 | G43: PLN
A44: 700063 | B44: 20.05.2004 | C44: NACZEPA KN 0966P | D44: 227741.56 | E44: -227741.56 | F44: 0 | G44: PLN
A45: 700065 | B45: 13.10.2004 | C45: CIAGNIK SCANIA KN 21779 | D45: 316466.05 | E45: -316466.05 | F45: 0 | G45: PLN
A46: 700066 | B46: 22.10.2004 | C46: CIĄGNIK SCANIA KN 22034 | D46: 312590.75 | E46: -312590.75 | F46: 0 | G46: PLN
A47: 700068 | B47: 05.11.2004 | C47: NACZEPA KN 1108P | D47: 59714 | E47: -59714 | F47: 0 | G47: PLN
A48: 700069 | B48: 06.12.2004 | C48: NACZEPA SCHMIDT KN 1117P | D48: 236298.2 | E48: -236298.2 | F48: 0 | G48: PLN
A49: 700070 | B49: 06.12.2004 | C49: NACZEPA SCHMIDT KN 1116P | D49: 235516.2 | E49: -235516.2 | F49: 0 | G49: PLN
A50: 700073 | B50: 10.01.2005 | C50: CIAGNIK DAF KN 23157 | D50: 264833.04 | E50: -264833.04 | F50: 0 | G50: PLN
A51: 700074 | B51: 10.01.2005 | C51: CIĄGNIK DAF 23158 | D51: 264833.04 | E51: -264833.04 | F51: 0 | G51: PLN
A52: 700076 | B52: 15.04.2005 | C52: CIADNIK DAF KN 24472 | D52: 267827.15 | E52: -267827.15 | F52: 0 | G52: PLN
A53: 700081 | B53: 06.01.2006 | C53: CIAGNIK KN 28109 RENAULT | D53: 244624.1 | E53: -244624.1 | F53: 0 | G53: PLN
A54: 700082 | B54: 24.01.2006 | C54: SCANIA KN 28291 | D54: 278953 | E54: -278953 | F54: 0 | G54: PLN
A55: 700083 | B55: 08.02.2006 | C55: SCANIA KN 28320 | D55: 276340.25 | E55: -276340.25 | F55: 0 | G55: PLN
A56: 700084 | B56: 08.02.2006 | C56: SCANIA KN 28321 | D56: 276340.25 | E56: -276340.25 | F56: 0 | G56: PLN
A57: 700085 | B57: 17.02.2006 | C57: NACZEPA KN 1301P | D57: 144288.2 | E57: -144288.2 | F57: 0 | G57: PLN
A58: 700086 | B58: 28.02.2006 | C58: NACZEPA SCHMITZ KN 1307P | D58: 162797.05 | E58: -162797.05 | F58: 0 | G58: PLN
A59: 700087 | B59: 01.03.2006 | C59: NACZEPA KN1306P SCHMIDTS | D59: 144288.2 | E59: -144288.2 | F59: 0 | G59: PLN
A60: 700089 | B60: 10.03.2006 | C60: NACZEPA KN 1314P | D60: 155114 | E60: -155114 | F60: 0 | G60: PLN
A61: 700102 | B61: 30.08.2006 | C61: KN 1539P NACZEPA SCHMIDT | D61: 168370.2 | E61: -168370.2 | F61: 0 | G61: PLN
A62: 700103 | B62: 13.09.2006 | C62: NACZEPA SCHMITS KN 1538 P | D62: 159356.48 | E62: -159356.48 | F62: 0 | G62: PLN
A63: 700109 | B63: 26.09.2006 | C63: CIĄGNIK SIODŁOWY SCANIA | D63: 309734.7 | E63: -309734.7 | F63: 0 | G63: PLN
A64: 700110 | B64: 29.09.2006 | C64: CIĄGNIK SIODŁOWY SCANIA | D64: 309734.7 | E64: -309734.7 | F64: 0 | G64: PLN
A65: 700112 | B65: 07.12.2006 | C65: SCANIA KN 33521 | D65: 310245.35 | E65: -310245.35 | F65: 0 | G65: PLN
A66: 700115 | B66: 02.02.2007 | C66: CIAGNIK SIODŁOWY VOLVO | D66: 313957.8 | E66: -313714.99 | F66: 242.81 | G66: PLN
A67: 700116 | B67: 09.02.2007 | C67: NACZEPA SCHMITZ KN 1552P | D67: 158897 | E67: -158774.13 | F67: 122.87 | G67: PLN
A68: 700117 | B68: 19.02.2007 | C68: CIAGNIK SIODŁOWY VOLVO | D68: 313957.8 | E68: -313714.99 | F68: 242.81 | G68: PLN
A69: 700118 | B69: 28.02.2007 | C69: NACZEPA KN 1610P SCHMIT | D69: 119172 | E69: -119079.84 | F69: 92.16 | G69: PLN
A70: 700123 | B70: 16.10.2007 | C70: VOLVO CIAGNIK SIODŁOWY | D70: 299801 | E70: -270558.01 | F70: 29242.99 | G70: PLN
A71: 700124 | B71: 16.10.2007 | C71: CIAGNIK SIODŁOWY KN 38518 | D71: 296767.4 | E71: -267820.32 | F71: 28947.08 | G71: PLN
A72: 700126 | B72: 30.05.2008 | C72: CIĄGNIK SIODŁOWY SCANIA KN 42635 | D72: 293654 | E72: -241659.23 | F72: 51994.77 | G72: PLN
A73: 700127 | B73: 12.09.2008 | C73: CIAGNIK SIODŁOWY SCANIA KN 45022 | D73: 268344 | E73: -256426.49 | F73: 11917.51 | G73: PLN
A74: 700128 | B74: 29.10.2008 | C74: PRZYCZEPA THULE TYP T 2 | D74: 5112.5 | E74: -3898.07 | F74: 1214.43 | G74: PLN
A75: 700129 | B75: 31.05.2009 | C75: NACZEPA SCHWARZMUELLER KN 2505P | D75: 135134.5 | E75: -135134.5 | F75: 0 | G75: PLN
A76: 700130 | B76: 31.05.2009 | C76: NACZEPA CHŁODNIA KN 2502P | D76: 145134.5 | E76: -145134.5 | F76: 0 | G76: PLN
A77: 700131 | B77: 02.06.2009 | C77: SCANIA KN 49127 | D77: 277191.5 | E77: -185951.88 | F77: 91239.62 | G77: PLN
A78: 700132 | B78: 05.06.2009 | C78: NACZEPA SCHMITZ KN 2517P | D78: 68134.5 | E78: -68134.5 | F78: 0 | G78: PLN
A79: 700134 | B79: 08.06.2009 | C79: SCANIA KN 49241 | D79: 125195.5 | E79: -125195.5 | F79: 0 | G79: PLN
A80: 700135 | B80: 30.06.2009 | C80: CIĄGNIK SCANIA KN 49582 | D80: 171191.5 | E80: -171191.5 | F80: 0 | G80: PLN
A81: 700136 | B81: 30.06.2009 | C81: CIĄGNIK SCANIA KN 49564 | D81: 171191.5 | E81: -171191.5 | F81: 0 | G81: PLN
A82: 700137 | B82: 30.06.2009 | C82: NACZEPA SCHNMITZ KN 2525P | D82: 90134.5 | E82: -90134.5 | F82: 0 | G82: PLN
A83: 700138 | B83: 03.07.2009 | C83: NACZEPA SCHMITZ SKO KN 2546 P | D83: 120134.5 | E83: -120134.5 | F83: 0 | G83: PLN
A84: 700139 | B84: 08.07.2009 | C84: NACZEPA SCHMITZ SKO KN 2597 P | D84: 131711.5 | E84: -131711.5 | F84: 0 | G84: PLN
A85: 700140 | B85: 21.07.2009 | C85: NACZEPA SCHMITZ SKO KN 2583 P | D85: 150134.5 | E85: -150134.5 | F85: 0 | G85: PLN
A86: 700141 | B86: 21.07.2009 | C86: CIĄGNIK SCANIA KN 49956 | D86: 124178.2 | E86: -124178.2 | F86: 0 | G86: PLN
A87: 700143 | B87: 03.08.2009 | C87: NACZEPA KRONE KN 2564P | D87: 155134.5 | E87: -155134.5 | F87: 0 | G87: PLN
A88: 700144 | B88: 06.01.2010 | C88: Ciagnik SCANIA kn 53189 | D88: 180267 | E88: -180267 | F88: 0 | G88: PLN
A89: 700145 | B89: 31.01.2010 | C89: NACZEPA SCHMITZ KN 2715P | D89: 126915.58 | E89: -74839.58 | F89: 52076 | G89: PLN
A90: 700146 | B90: 12.02.2010 | C90: Ciagnik SCANIA KN 53612 | D90: 165355 | E90: -146982.08 | F90: 18372.92 | G90: PLN
A91: 700147 | B91: 15.02.2010 | C91: Ciagnik SCANIA kn 53620 | D91: 120372 | E91: -106997.23 | F91: 13374.77 | G91: PLN
A92: 700148 | B92: 28.02.2010 | C92: NACZEPA SCHMITZ KN 2774P | D92: 199250.1 | E92: -114927.46 | F92: 84322.64 | G92: PLN
A93: 700151 | B93: 16.04.2010 | C93: NACZEPA LAMBERT KN 2814P | D93: 133143.5 | E93: -133143.5 | F93: 0 | G93: PLN
A94: 700153 | B94: 30.04.2010 | C94: NACZEPA SCHMITZ KN 2839 P | D94: 196726.75 | E94: -108404.31 | F94: 88322.44 | G94: PLN
A95: 700154 | B95: 30.07.2010 | C95: NACZEPA SCHMITZ KN 3007P | D95: 204629.6 | E95: -104852.2 | F95: 99777.4 | G95: PLN
A96: 700155 | B96: 30.07.2010 | C96: NACZEPA SCHMITZ KN 3008P | D96: 204629.6 | E96: -104852.2 | F96: 99777.4 | G96: PLN
A97: 700157 | B97: 09.08.2010 | C97: CIĄGNIK SCANIA R 420 KN 56871 | D97: 159718 | E97: -138422.26 | F97: 21295.74 | G97: PLN
A98: 700158 | B98: 03.11.2010 | C98: CIĄGNIK SCANIA R 420 KN 58199 | D98: 225278 | E98: -172713.14 | F98: 52564.86 | G98: PLN
A99: 700160 | B99: 04.11.2010 | C99: CIĄGNIK SCANIA R 420 KN 58246 | D99: 230278 | E99: -176546.46 | F99: 53731.54 | G99: PLN
A100: 700161 | B100: 30.11.2010 | C100: CIĄGNIK SCANIA R 420 KN 58689 | D100: 175202.5 | E100: -134321.91 | F100: 40880.59 | G100: PLN
A101: 700162 | B101: 25.01.2011 | C101: CIĄGNIK SCANIA R 420 KN 59594 | D101: 176278 | E101: -75819.13 | F101: 100458.87 | G101: PLN
A102: 700164 | B102: 08.03.2011 | C102: NACZEPA SCHMITZ KN 3249P | D102: 199711.37 | E102: -78752.85 | F102: 120958.52 | G102: PLN
A103: 700165 | B103: 08.03.2011 | C103: NACZEPA SCHMITZ KN 3248P | D103: 199711.37 | E103: -78752.85 | F103: 120958.52 | G103: PLN
A104: 700166 | B104: 27.04.2011 | C104: NACZEPA SCHMITZ KN 3314P | D104: 130143.5 | E104: -78086.1 | F104: 52057.4 | G104: PLN
A105: 700167 | B105: 27.04.2011 | C105: NACZEPA SCHMITZ KN 3315P | D105: 130143.5 | E105: -78086.1 | F105: 52057.4 | G105: PLN
A106: 700168 | B106: 27.04.2011 | C106: NACZEPA SCHMITZ KN 3316P | D106: 130143.5 | E106: -78086.1 | F106: 52057.4 | G106: PLN
A107: 700169 | B107: 24.05.2011 | C107: NACZEPA SCHMITZ KN 3283P | D107: 130218.5 | E107: -73790.49 | F107: 56428.01 | G107: PLN
A108: 700171 | B108: 27.05.2011 | C108: CIĄGNIK SCANIA KN 61565 | D108: 225278 | E108: -76744.7 | F108: 148533.3 | G108: PLN
A109: 700173 | B109: 30.06.2011 | C109: CIĄGNIK SCANIA KN 61871 | D109: 198278 | E109: -105748.27 | F109: 92529.73 | G109: PLN
A110: 700175 | B110: 14.07.2011 | C110: CIĄGNIK SCANIA KN 62078 | D110: 220765.4 | E110: -110382.7 | F110: 110382.7 | G110: PLN
A111: 700176 | B111: 30.09.2011 | C111: CIĄGNIK SCANIA KN 63416 | D111: 222278 | E111: -96320.47 | F111: 125957.53 | G111: PLN
A112: 700179 | B112: 05.12.2011 | C112: CIĄGNIK SCANIA KN 64373 | D112: 185202.5 | E112: -61734.17 | F112: 123468.33 | G112: PLN
A113: 700180 | B113: 09.01.2012 | C113: CIĄGNIK SCANIA KN 64754 | D113: 174278 | E113: -52283.4 | F113: 121994.6 | G113: PLN
A114: 700181 | B114: 16.01.2012 | C114: NACZEPA SCHMITZ KN 3687P | D114: 130143.5 | E114: -39043.05 | F114: 91100.45 | G114: PLN
A115: 700182 | B115: 13.03.2012 | C115: CIĄGNIK SCANIA KN 65723 | D115: 234202.5 | E115: -54647.25 | F115: 179555.25 | G115: PLN
A116: 700183 | B116: 20.03.2012 | C116: NACZEPA SCHMITZ KN 3848P | D116: 150143.5 | E116: -35033.48 | F116: 115110.02 | G116: PLN
A117: 700184 | B117: 11.04.2012 | C117: CIĄGNIK SCANIA KN 66012 | D117: 234202.5 | E117: -46840.5 | F117: 187362 | G117: PLN
A118: 700185 | B118: 11.05.2012 | C118: CIĄGNIK SCANIA KN 66329 | D118: 225202.5 | E118: -37533.75 | F118: 187668.75 | G118: PLN
A119: 700186 | B119: 16.05.2012 | C119: NACZEPA SCHMITZ KN 3948P | D119: 75143.5 | E119: -12523.92 | F119: 62619.58 | G119: PLN
A120: 700188 | B120: 08.06.2012 | C120: NACZEPA SCHMITZ KN 3910P | D120: 140143.5 | E120: -18685.8 | F120: 121457.7 | G120: PLN
A121: 700189 | B121: 11.06.2012 | C121: NACZEPA KOGEL SV 24 KN 3909P | D121: 140143.5 | E121: -18685.8 | F121: 121457.7 | G121: PLN
A122: 700190 | B122: 15.06.2012 | C122: CIĄGNIK SCANIA KN 67282 | D122: 220202.5 | E122: -29360.33 | F122: 190842.17 | G122: PLN
A123: 700192 | B123: 04.07.2012 | C123: NACZEPA SCHMITZ KN 3975P | D123: 136143.5 | E123: -13614.35 | F123: 122529.15 | G123: PLN
A124: 700193 | B124: 04.07.2012 | C124: NACZEPA SCHMITZ KN 3971P | D124: 126143.5 | E124: -12614.35 | F124: 113529.15 | G124: PLN
A125: Grupa akt. trw. SW07 Środki transportowe | D125: 17822994.04 | E125: -14212166.46 | F125: 3610827.58 | G125: PLN
A127: K.bil.: WP 0000101400 Środki transportowe | D127: 17822994.04 | E127: -14212166.46 | F127: 3610827.58 | G127: PLN
C129: WARTOŚCI NIEMATERIALNE I PRAWNE ZWIĄZANE Z DZIAŁALNOŚCIĄ TRANSPORTOWĄ
A131: SkłAktTrw | B131: Data akt. | C131: Oznaczenie aktywów trwałych | D131: WartPocz | E131: Umorzenie | F131: WartKs | G131: Wal.
A133: 2200007 | B133: 29.07.2011 | C133: Licencja TX-MAX oprogramowanie TRANSISC | D133: 12289.38 | E133: -3072.35 | F133: 9217.03 | G133: PLN
A135: Grupa akt. trw. WN22 Oprogramowanie | D135: 12289.38 | E135: -3072.35 | F135: 9217.03 | G135: PLN
A137: Dział gospodarczy TRANSPORT | D137: 18002790.42 | E137: -14273682.5 | F137: 3729107.92 | G137: PLN
C138: Nowy Sącz dnia 27.12.2012 r.

Sheet NAJMY
A1: Wykaz środków trwałych przypadającej spółce nowo zawiązanej zwiazanych z działalnością POLMEX w zakresie nieruchomości
C2: STAN NA 01.11.2012 R. | E2: Załacznik Nr 10.4 | H2: 1
A4: SkłAktTrw | B4: Data akt. | C4: Oznaczenie aktywów trwałych | D4: WartPocz | E4: Umorzenie | F4: WartKs | G4: Wal.
A6: 10001 | B6: 01.01.1994 | C6: GRUNTY-TARNOWSKA | D6: 523933.29 | E6: 0 | F6: 523933.29 | G6: PLN
A7: 10005 | B7: 12.12.2005 | C7: DZIAŁKA 51/9 60/1 NIEZABUDOWANA KILINSKI | D7: 88000 | E7: 0 | F7: 88000 | G7: PLN
A8: 10006 | B8: 12.12.2005 | C8: DZIAŁKI ZABUDOWANE 58/7,58/15,58/5,58/6 | D8: 465120 | E8: 0 | F8: 465120 | G8: PLN
A9: 10010 | B9: 04.01.2012 | C9: Działka 41/1 , 57/18 o. 71 zajazd | D9: 979832.33 | E9: 0 | F9: 979832.33 | G9: PLN
A10: 10003 | B10: 01.08.1995 | C10: DZIAŁKA-GORZKÓW | D10: 101322.23 | E10: 0 | F10: 101322.23 | G10: PLN
A11: 10004 | B11: 01.10.1995 | C11: GRUNTY-DROGA | D11: 3124.3 | E11: 0 | F11: 3124.3 | G11: PLN
A12: 10009 | B12: 09.12.2011 | C12: Działka 219/5 KW NS 79045/4 | D12: 8747 | E12: 0 | F12: 8747 | G12: PLN
C13: Razem grunty | D13: =SUM(D6:D12) -> 2170079.15 | E13: =SUM(E6:E12) -> 0 | F13: =SUM(F6:F12) -> 2170079.15
A14: SkłAktTrw | B14: Data akt. | C14: Oznaczenie aktywów trwałych | D14: WartPocz | E14: Umorzenie | F14: WartKs | G14: Wal.
A15: 100011 | B15: 12.12.2005 | C15: BUDYNEK MAGAZYNOWY DUZY R.B 2000 | D15: 860043 | E15: -176308.88 | F15: 683734.12 | G15: PLN
A16: 100012 | B16: 31.12.2005 | C16: BUDYNEEK BIUROWY DUŻY R.B 2000 | D16: 512340 | E16: -105029.7 | F16: 407310.3 | G16: PLN
A17: 100013 | B17: 31.12.2005 | C17: BUDYNEK MAGAZ. MAŁY | D17: 50374 | E17: -34422.15 | F17: 15951.85 | G17: PLN
A18: 100014 | B18: 31.12.2005 | C18: BUD MAGAZYNOWY KRYTY BLACHA R.B 1994 R. | D18: 332433 | E18: -227162.67 | F18: 105270.33 | G18: PLN
A19: 100015 | B19: 07.03.2007 | C19: HALA MARKET | D19: 16537831.31 | E19: -2308259.67 | F19: 14229571.64 | G19: PLN
A20: 100016 | B20: 02.04.2007 | C20: GARAZ ZAJAZD | D20: 11247 | E20: -3866.18 | F20: 7380.82 | G20: PLN
A21: 100017 | B21: 02.04.2007 | C21: BUDYNEK ' ZAJAZD SĄDECKI' | D21: 2849520 | E21: -979522.5 | F21: 1869997.5 | G21: PLN
A22: 100002 | B22: 31.07.1998 | C22: WIATA SAMOCHODOWA | D22: 12051.89 | E22: -6869.41 | F22: 5182.48 | G22: PLN
A23: 100009 | B23: 31.01.2004 | C23: PORTINIA | D23: 48783.56 | E23: -42685.65 | F23: 6097.91 | G23: PLN
A24: 100018 | B24: 30.06.1993 | C24: BUDYNEK MAGAZYNOWO-BIUROWY | D24: 11029768.18 | E24: -1648694.05 | F24: 9381074.13 | G24: PLN
C25: Razem budynki | D25: =SUM(D15:D24) -> 32244391.94 | E25: =SUM(E15:E24) -> -5532820.86 | F25: =SUM(F15:F24) -> 26711571.08
A27: SkłAktTrw | B27: Data akt. | C27: Oznaczenie aktywów trwałych | D27: WartPocz | E27: Umorzenie | F27: WartKs | G27: Wal.
A29: 200003 | B29: 12.12.2005 | C29: PLAC ZABUDOWANY | D29: 75000 | E29: -51250 | F29: 23750 | G29: PLN
A30: 200004 | B30: 12.12.2005 | C30: OGRODZENIE | D30: 90665.1 | E30: -29610.92 | F30: 61054.18 | G30: PLN
A31: 200006 | B31: 31.05.2006 | C31: KANALIZACJA DESZCZOWA KILIŃSKIEGO | D31: 31147.54 | E31: -8993.79 | F31: 22153.75 | G31: PLN
A32: 200009 | B32: 07.03.2007 | C32: CHODNIK PÓŁNOCNY TARNOWSKA | D32: 6758.57 | E32: -1698.07 | F32: 5060.5 | G32: PLN
A33: 200010 | B33: 07.03.2007 | C33: ZJAZD Z UL. TARNOWSKIEJ | D33: 5447.3 | E33: -1368.67 | F33: 4078.63 | G33: PLN
A34: 200011 | B34: 07.03.2007 | C34: ULICA WARZYWNA | D34: 214167.84 | E34: -53809.66 | F34: 160358.18 | G34: PLN
A35: 200012 | B35: 07.03.2007 | C35: LEWOSKRĘT TARNOWSKA | D35: 122254.83 | E35: -27681.29 | F35: 94573.54 | G35: PLN
A36: 200013 | B36: 07.03.2007 | C36: EKRAN ROZGRANICZAJĄCY | D36: 334333.97 | E36: -84001.4 | F36: 250332.57 | G36: PLN
A37: 200014 | B37: 02.04.2007 | C37: PLACE I CHODNIKI | D37: 23071 | E37: -12881.32 | F37: 10189.68 | G37: PLN
A38: 200017 | B38: 20.12.2011 | C38: Ekran akustyczny MEDIA MAKT | D38: 55504.42 | E38: -2081.42 | F38: 53423 | G38: PLN
A39: 200001 | B39: 31.08.1995 | C39: ULICE I PLACE | D39: 112641 | E39: -77348.02 | F39: 35292.98 | G39: PLN
A40: 200016 | B40: 30.07.2010 | C40: PRZEPOMPOWNIA SCIEKÓW | D40: 27680 | E40: -2802.6 | F40: 24877.4 | G40: PLN
C41: Razem budowle | D41: =SUM(D29:D40) -> 1098671.57 | E41: =SUM(E29:E40) -> -353527.16 | F41: =SUM(F29:F40) -> 745144.41
A44: SkłAktTrw | B44: Data akt. | C44: Oznaczenie aktywów trwałych | D44: WartPocz | E44: Umorzenie | F44: WartKs | G44: Wal.
A46: 300001 | B46: 31.12.2005 | C46: PIEC BUDERUS | D46: 5000 | E46: -5000 | F46: 0 | G46: PLN
A47: 300002 | B47: 07.03.2007 | C47: AGREGAT PRADOTWÓRCZY | D47: 112254.2 | E47: -110809.55 | F47: 1444.65 | G47: PLN
A48: 300003 | B48: 07.03.2007 | C48: KOCIOŁ GAZOWY | D48: 69051.73 | E48: -39273.92 | F48: 29777.81 | G48: PLN
C49: Razem kotły i maszyny | D49: =SUM(D46:D48) -> 186305.93 | E49: =SUM(E46:E48) -> -155083.47 | F49: =SUM(F46:F48) -> 31222.46
A52: SkłAktTrw | B52: Data akt. | C52: Oznaczenie aktywów trwałych | D52: WartPocz | E52: Umorzenie | F52: WartKs | G52: Wal.
A53: 600013 | B53: 09.01.2008 | C53: CENTRALA TELEFONICZNA CENTRALA TE | D53: 14032 | E53: -13330.4 | F53: 701.6 | G53: PLN
C54: Razem urzadzenia techniczne | D54: =SUM(D53:D53) -> 14032 | E54: =SUM(E53:E53) -> -13330.4 | F54: =SUM(F53:F53) -> 701.6
A56: SkłAktTrw | B56: Data akt. | C56: Oznaczenie aktywów trwałych | D56: WartPocz | E56: Umorzenie | F56: WartKs | G56: Wal.
A57: 600006 | B57: 15.03.2006 | C57: KLIMATYZACJA KILINSKIEGO | D57: 34000 | E57: -28836.58 | F57: 5163.42 | G57: PLN
A58: 600009 | B58: 07.03.2007 | C58: STACJA TRAFO | D58: 162903.7 | E58: -162903.7 | F58: 0 | G58: PLN
A59: 600010 | B59: 07.03.2007 | C59: DZWIGNIKI | D59: 54946.58 | E59: -41107.38 | F59: 13839.2 | G59: PLN
A60: 600011 | B60: 07.03.2007 | C60: POMPY P/POZAROWE | D60: 248958.7 | E60: -186254.3 | F60: 62704.4 | G60: PLN
A61: 600012 | B61: 04.04.2007 | C61: URZADZENIA KLIMATYZACYJNE | D61: 788752.52 | E61: -583361.39 | F61: 205391.13 | G61: PLN
C62: Razem urządzenia | D62: =SUM(D57:D61) -> 1289561.5 | E62: =SUM(E57:E61) -> -1002463.35 | F62: =SUM(F57:F61) -> 287098.15
A64: SkłAktTrw | B64: Data akt. | C64: Oznaczenie aktywów trwałych | D64: WartPocz | E64: Umorzenie | F64: WartKs | G64: Wal.
A65: 800006 | B65: 28.02.1999 | C65: BIURKO | D65: 3708 | E65: -3708 | F65: 0 | G65: PLN
A66: 800007 | B66: 28.02.1999 | C66: WITRYNA | D66: 3846 | E66: -3846 | F66: 0 | G66: PLN
A67: 800008 | B67: 28.02.1999 | C67: WITRYNA | D67: 3846 | E67: -3846 | F67: 0 | G67: PLN
A68: 800011 | B68: 18.10.2000 | C68: KLIPSIARKA ELEKTRYCZNA | D68: 12430 | E68: -12430 | F68: 0 | G68: PLN
A69: 800018 | B69: 28.03.2002 | C69: BIURKO | D69: 4950.82 | E69: -4950.82 | F69: 0 | G69: PLN
A70: 800020 | B70: 10.07.2002 | C70: APARAT CYFROWY CANON DIGITA | D70: 1638.52 | E70: -1638.52 | F70: 0 | G70: PLN
A71: 800021 | B71: 09.09.2002 | C71: MEBLE | D71: 618.04 | E71: -618.04 | F71: 0 | G71: PLN
A72: 800022 | B72: 11.10.2002 | C72: ZAMRAZARKA | D72: 614.75 | E72: -614.75 | F72: 0 | G72: PLN
A73: 800023 | B73: 11.10.2002 | C73: KUCHENKA | D73: 118.52 | E73: -118.52 | F73: 0 | G73: PLN
A74: 800025 | B74: 31.10.2002 | C74: FOTEL | D74: 1360.66 | E74: -1360.66 | F74: 0 | G74: PLN
A75: 800026 | B75: 22.03.2004 | C75: KOPIARKA DP 1510P | D75: 4290 | E75: -4290 | F75: 0 | G75: PLN
A76: 800032 | B76: 01.12.2006 | C76: KLUCZ ELEKTRYCZNY | D76: 7000 | E76: -7000 | F76: 0 | G76: PLN
A77: 800034 | B77: 15.03.2007 | C77: TELEWIZOR LG 42 | D77: 3277.87 | E77: -3277.87 | F77: 0 | G77: PLN
A78: 800035 | B78: 19.12.2007 | C78: MATA ALUMINIOWA | D78: 4710 | E78: -4553 | F78: 157 | G78: PLN
A79: 800036 | B79: 31.12.2007 | C79: LOGO POLMEX | D79: 8700 | E79: -8410 | F79: 290 | G79: PLN
A80: 800037 | B80: 20.11.2007 | C80: STÓŁ KONFERENCYJNY | D80: 8640 | E80: -8352 | F80: 288 | G80: PLN
A81: 800038 | B81: 20.11.2007 | C81: SZAFKA MOBILNA Z ZALUZJAMI | D81: 13100 | E81: -12663.33 | F81: 436.67 | G81: PLN
A82: 800039 | B82: 31.12.2007 | C82: FOTEL PRESIDENT | D82: 4225 | E82: -4084.17 | F82: 140.83 | G82: PLN
A83: 800040 | B83: 31.12.2007 | C83: FOTEL PRESIDENT | D83: 4225 | E83: -4084.17 | F83: 140.83 | G83: PLN
A84: 800041 | B84: 31.12.2007 | C84: FOTEL PRESIDENT | D84: 4225 | E84: -4084.17 | F84: 140.83 | G84: PLN
A85: 800042 | B85: 31.12.2007 | C85: FOTEL 1 OSOBOWY | D85: 4300 | E85: -4156.67 | F85: 143.33 | G85: PLN
A86: 800043 | B86: 31.12.2007 | C86: FOTEL 1 OSOBOWY A 110 | D86: 4300 | E86: -4156.67 | F86: 143.33 | G86: PLN
A87: 800044 | B87: 31.12.2007 | C87: FOTEL 1 OSOBOWY A 110 | D87: 4300 | E87: -4156.67 | F87: 143.33 | G87: PLN
A88: 800045 | B88: 31.12.2007 | C88: FOTEL 1 OSOBOWY A 110 | D88: 4300 | E88: -4156.67 | F88: 143.33 | G88: PLN
A89: 800046 | B89: 31.12.2007 | C89: FOTEL 1 OSOBOWY 110 | D89: 4300 | E89: -4156.67 | F89: 143.33 | G89: PLN
A90: 800047 | B90: 31.12.2007 | C90: FOTEL 1 OSOBOWY A 110 | D90: 4300 | E90: -4156.67 | F90: 143.33 | G90: PLN
A91: 800048 | B91: 31.12.2007 | C91: FOTEL 1 OSOBOWY A110 | D91: 4300 | E91: -4156.67 | F91: 143.33 | G91: PLN
A92: 800049 | B92: 31.12.2007 | C92: FOTEL 1 OSOBOWY A110 | D92: 4300 | E92: -4156.67 | F92: 143.33 | G92: PLN
A93: 800050 | B93: 31.12.2007 | C93: KANAPA 3 OSOBOWA | D93: 8999 | E93: -8699.03 | F93: 299.97 | G93: PLN
A94: 800051 | B94: 31.12.2007 | C94: FOTEL 1 OSOBOWY 1030 | D94: 5450 | E94: -5268.33 | F94: 181.67 | G94: PLN
A95: 800052 | B95: 31.12.2007 | C95: FOTEL 1 OSOBOWY 1030 | D95: 5450 | E95: -5268.33 | F95: 181.67 | G95: PLN
A96: 800053 | B96: 31.12.2007 | C96: FOTEL 1 OSOBOWY D110 | D96: 3672 | E96: -3549.6 | F96: 122.4 | G96: PLN
A97: 800054 | B97: 31.12.2007 | C97: FOTEL 1 OSOBOWY D 110 | D97: 3672 | E97: -3549.6 | F97: 122.4 | G97: PLN
A98: 800055 | B98: 31.12.2007 | C98: STÓŁ KONFERENCYJNY | D98: 13350 | E98: -12905 | F98: 445 | G98: PLN
A99: 800056 | B99: 31.12.2007 | C99: MEBLE KUCHENNE PARTER | D99: 25730 | E99: -24872.33 | F99: 857.67 | G99: PLN
A100: 800057 | B100: 31.12.2007 | C100: MEBLE KUCHENNE SEKRETARIAT | D100: 20600 | E100: -19913.33 | F100: 686.67 | G100: PLN
A101: 800058 | B101: 31.12.2007 | C101: MEBLE KUCHENNE PIĘTRO | D101: 28980 | E101: -28014 | F101: 966 | G101: PLN
A102: 800059 | B102: 31.12.2007 | C102: NAPIS POLMEX | D102: 17750 | E102: -17158.33 | F102: 591.67 | G102: PLN
A103: 800060 | B103: 28.01.2008 | C103: KOMPLET FOTELI SELVA KOMPL.FOTELI | D103: 30231.15 | E103: -28719.6 | F103: 1511.55 | G103: PLN
A104: 800061 | B104: 05.02.2008 | C104: MEBLE KIROWCY MEBLE KIEROWCY | D104: 13400 | E104: -12506.66 | F104: 893.34 | G104: PLN
A105: 800062 | B105: 20.02.2008 | C105: REGAť.PRZEJEZDNE ARCHIWUM REGAťY | D105: 47000 | E105: -43866.66 | F105: 3133.34 | G105: PLN
A106: 800063 | B106: 26.02.2008 | C106: ZESTAW FOTELI SMART 8 SZT ZESTAW | D106: 33606.56 | E106: -31366.11 | F106: 2240.45 | G106: PLN
A107: 800064 | B107: 13.03.2008 | C107: FOTEL SELMA 2 SZTYKI FOTEL SELMA | D107: 10077.05 | E107: -9237.3 | F107: 839.75 | G107: PLN
A108: 800065 | B108: 31.12.2007 | C108: STOŁ KONFERENCYJNY | D108: 9778 | E108: -9385.34 | F108: 392.66 | G108: PLN
A109: 800066 | B109: 31.05.2008 | C109: BAREK -ZARZĄD | D109: 18102 | E109: -15688.4 | F109: 2413.6 | G109: PLN
A110: 800067 | B110: 08.07.2008 | C110: LAMPA BIURKOWA MARINER | D110: 4508.2 | E110: -3831.97 | F110: 676.23 | G110: PLN
A111: 800068 | B111: 20.08.2008 | C111: LAMPA BIURKOWA MARINER | D111: 4508.2 | E111: -3756.84 | F111: 751.36 | G111: PLN
A112: 800069 | B112: 08.07.2008 | C112: LAMPA BIURKOWA MARINER | D112: 4508.2 | E112: -3831.97 | F112: 676.23 | G112: PLN
A113: 800070 | B113: 07.11.2008 | C113: STÓŁ DO SALI KONFERENCYJNEJ | D113: 7000 | E113: -5483.34 | F113: 1516.66 | G113: PLN
A114: 800071 | B114: 31.05.2009 | C114: FOTEL JAZZ STRESSLESS | D114: 7745.9 | E114: -5293.03 | F114: 2452.87 | G114: PLN
A115: 800073 | B115: 16.06.2011 | C115: MEBLE SANTA BARBARA KOMPLET | D115: 4719.51 | E115: -1258.53 | F115: 3460.98 | G115: PLN
D116: =SUM(D65:D115) -> 458761.95 | E116: =SUM(E65:E115) -> -430607.01 | F116: =SUM(F65:F115) -> 28154.94
A118: Dział gospodarczy NAJEM | D118: =D13+D25+D41+D49+D54+D62+D116 -> 37461804.04 | E118: =E13+E25+E41+E49+E54+E62+E116 -> -7487832.25 | F118: =F13+F25+F41+F49+F54+F62+F116 -> 29973971.79
A119: Wartośc nakładów na modernizację nieruchomości KW 65125/8 | D119: 125500 | F119: 125500 | G119: PLN
C120: RAZEM WARTOŚCI KSIĘGOWE | D120: =SUM(D118:D119) -> 37587304.04 | E120: =SUM(E118:E119) -> -7487832.25 | F120: =SUM(F118:F119) -> 30099471.79
C121: Nowy Sacz dnia 27.12.2012 r.

Sheet SR T 501
F3: Stan aktywów trwałych - 01 Obsz.bilans. Na dzień 01.11.2012
N4: 1
A9: SkłAktTrw | B9: Pdnr | D9: Data akt. | E9: Oznaczenie aktywów trwałych | I9: WartPocz | K9: Umorzenie | L9: WartKs | M9: Wal.
A11: 10003 | B11: 0 | D11: 01.08.1995 | E11: DZIAŁKA-GORZKÓW | I11: 101.322,23 | K11: 0 | L11: 101.322,23 | M11: PLN
A12: 10004 | B12: 0 | D12: 01.10.1995 | E12: GRUNTY-DROGA | I12: 3.124,30 | K12: 0 | L12: 3.124,30 | M12: PLN
A13: 10009 | B13: 0 | D13: 09.12.2011 | E13: Działka 219/5 KW NS 79045/4 | I13: 8.747,00 | K13: 0 | L13: 8.747,00 | M13: PLN
A15: Grupa akt. trw. SW00 Grunty i prawa wiecz | I15: 113.193,53 | K15: 0 | L15: 113.193,53 | M15: PLN
A17: K.bil.: WP 0000101100 Grunty | I17: 113.193,53 | K17: 0 | L17: 113.193,53 | M17: PLN
N22: 2
D24: Działgospod. | G24: Poz.bilansowa | H24: K-tobil.w.pocz. | J24: Grupaakt.trw.
G25: 8000000 | H25: 101200 | J25: SW01
A27: SkłAktTrw | B27: Pdnr | D27: Data akt. | E27: Oznaczenie aktywów trwałych | I27: WartPocz | K27: Umorzenie | L27: WartKs | M27: Wal.
A29: 100002 | B29: 0 | D29: 31.07.1998 | E29: WIATA SAMOCHODOWA | I29: 12.051,89 | K29: -6.869,41 | L29: 5.182,48 | M29: PLN
A30: 100009 | B30: 0 | D30: 31.01.2004 | E30: PORTINIA | I30: 48.783,56 | K30: -42.685,65 | L30: 6.097,91 | M30: PLN
A31: 100018 | B31: 0 | D31: 30.06.1993 | E31: BUDYNEK MAGAZYNOWO-BIUROWY | I31: 11.029.768,18 | K31: -1.648.694,05 | L31: 9.381.074,13 | M31: PLN
A33: Grupa akt. trw. SW01 Budynki | I33: 11.090.603,63 | K33: -1.698.249,11 | L33: 9.392.354,52 | M33: PLN
C37: 31.10.2012 | F37: Stan aktywów trwałych - 01 Obsz.bilans.
C38: 13.12.2012 | N38: 3
D40: Działgospod. | G40: Poz.bilansowa | H40: K-tobil.w.pocz. | J40: Grupaakt.trw.
G41: 8000000 | H41: 101200 | J41: SW02
A43: SkłAktTrw | B43: Pdnr | D43: Data akt. | E43: Oznaczenie aktywów trwałych | I43: WartPocz | K43: Umorzenie | L43: WartKs | M43: Wal.
A45: 200001 | B45: 0 | D45: 31.08.1995 | E45: ULICE I PLACE | I45: 112.641,00 | K45: -77.348,02 | L45: 35.292,98 | M45: PLN
A46: 200016 | B46: 0 | D46: 30.07.2010 | E46: PRZEPOMPOWNIA SCIEKÓW | I46: 27.680,00 | K46: -2.802,60 | L46: 24.877,40 | M46: PLN
A48: Grupa akt. trw. SW02 Budowle,lokale,prawa | I48: 140.321,00 | K48: -80.150,62 | L48: 60.170,38 | M48: PLN
A50: K.bil.: WP 0000101200 Budynki | I50: 11.230.924,63 | K50: -1.778.399,73 | L50: 9.452.524,90 | M50: PLN
C54: 31.10.2012 | F54: Stan aktywów trwałych - 01 Obsz.bilans.
C55: 13.12.2012 | N55: 4
D57: Działgospod. | G57: Poz.bilansowa | H57: K-tobil.w.pocz. | J57: Grupaakt.trw.
G58: 8000000 | H58: 101300 | J58: SW04
A60: SkłAktTrw | B60: Pdnr | D60: Data akt. | E60: Oznaczenie aktywów trwałych | I60: WartPocz | K60: Umorzenie | L60: WartKs | M60: Wal.
A62: 400002 | B62: 0 | D62: 28.02.1999 | E62: ZESTAW KOMPUTEROWY | I62: 18.098,60 | K62: -18.098,60 | L62: 0 | M62: PLN
A63: 400013 | B63: 0 | D63: 21.03.2002 | E63: MONITOR | I63: 1.557,38 | K63: -1.557,38 | L63: 0 | M63: PLN
A64: 400014 | B64: 0 | D64: 27.03.2002 | E64: ZESTAW KOMPUTEROWY | I64: 3.844,27 | K64: -3.844,27 | L64: 0 | M64: PLN
A65: 400016 | B65: 0 | D65: 11.04.2002 | E65: KOMPUTER | I65: 1.147,54 | K65: -1.147,54 | L65: 0 | M65: PLN
A66: 400022 | B66: 0 | D66: 04.07.2002 | E66: KOMPUTER SERWER | I66: 2.622,95 | K66: -2.622,95 | L66: 0 | M66: PLN
A67: 400034 | B67: 0 | D67: 29.09.2006 | E67: ZESTAW KOMPUTEROWY CELERON | I67: 2.146,02 | K67: -2.146,02 | L67: 0 | M67: PLN
A68: 400038 | B68: 0 | D68: 28.02.2007 | E68: ZESTAW KOMPUTEROWY INTEL CELERON | I68: 2.060,00 | K68: -2.060,00 | L68: 0 | M68: PLN
A69: 400039 | B69: 0 | D69: 13.04.2007 | E69: KOMPUTER TOSCHIBA | I69: 4.015,57 | K69: -4.015,57 | L69: 0 | M69: PLN
A70: 400045 | B70: 0 | D70: 20.09.2007 | E70: ZESTAW KOMPUTEROWY | I70: 5.926,23 | K70: -5.926,23 | L70: 0 | M70: PLN
A71: 400046 | B71: 0 | D71: 31.10.2007 | E71: KOMPUTER SERWER | I71: 14.660,28 | K71: -14.660,28 | L71: 0 | M71: PLN
A72: 400049 | B72: 0 | D72: 20.12.2007 | E72: SERWEROWNIA ZESP;ÓŁ KOMPUTERÓW | I72: 62.168,68 | K72: -62.168,68 | L72: 0 | M72: PLN
A73: 400051 | B73: 0 | D73: 11.04.2008 | E73: SYSTEM KOMPUTEROWY /PODGLĄD PISMA/ | I73: 20.421,00 | K73: -20.421,00 | L73: 0 | M73: PLN
A74: 400052 | B74: 0 | D74: 17.04.2009 | E74: KOMPUTER TOSHIBA QOSMIO F-50-12 A CAMILEO | I74: 6.803,28 | K74: -6.803,28 | L74: 0 | M74: PLN
A75: 400053 | B75: 0 | D75: 30.07.2010 | E75: KOMPUTER APPLE MACBOOK | I75: 8.755,78 | K75: -8.755,78 | L75: 0 | M75: PLN
A76: 400055 | B76: 0 | D76: 10.01.2011 | E76: NOTEBOOK SONY VAIO F13Z1E | I76: 5.593,50 | K76: -5.593,50 | L76: 0 | M76: PLN
A77: 400061 | B77: 0 | D77: 06.07.2011 | E77: KOMPUTER MACBOOK 1.4GHZ/11 | I77: 4.033,36 | K77: -2.520,85 | L77: 1.512,51 | M77: PLN
A78: 400073 | B78: 0 | D78: 21.10.2011 | E78: Notebook APPLE MacBook pro 15.4 | I78: 6.814,59 | K78: -2.044,38 | L78: 4.770,21 | M78: PLN
A80: Grupa akt. trw. SW04 Maszyny ogóln. zasto | I80: 170.669,03 | K80: -164.386,31 | L80: 6.282,72 | M80: PLN
C84: 31.10.2012 | F84: Stan aktywów trwałych - 01 Obsz.bilans.
C85: 13.12.2012 | N85: 5
D87: Działgospod. | G87: Poz.bilansowa | H87: K-tobil.w.pocz. | J87: Grupaakt.trw.
G88: 8000000 | H88: 101300 | J88: SW06
A90: SkłAktTrw | B90: Pdnr | D90: Data akt. | E90: Oznaczenie aktywów trwałych | I90: WartPocz | K90: Umorzenie | L90: WartKs | M90: Wal.
A92: 600003 | B92: 0 | D92: 23.08.1996 | E92: RADIO SAMOCHODOWE | I92: 929 | K92: -929 | L92: 0 | M92: PLN
A93: 600004 | B93: 0 | D93: 22.05.2001 | E93: FAX LASEROWY CANON L-250 | I93: 2.139,00 | K93: -2.139,00 | L93: 0 | M93: PLN
A94: 600013 | B94: 0 | D94: 09.01.2008 | E94: CENTRALA TELEFONICZNA CENTRALA TE | I94: 14.032,00 | K94: -13.330,40 | L94: 701.6 | M94: PLN
A95: 600015 | B95: 0 | D95: 30.06.2008 | E95: DRUKARKI FISKALNE SIEC | I95: 18.226,00 | K95: -18.226,00 | L95: 0 | M95: PLN
A96: 600016 | B96: 0 | D96: 30.06.2008 | E96: KOMPUTER LAPTOP | I96: 9.828,19 | K96: -9.828,19 | L96: 0 | M96: PLN
A98: Grupa akt. trw. SW06 Urządzenia | I98: 45.154,19 | K98: -44.452,59 | L98: 701.6 | M98: PLN
A100: K.bil.: WP 0000101300 Urządzenia | I100: 215.823,22 | K100: -208.838,90 | L100: 6.984,32 | M100: PLN
C104: 31.10.2012 | F104: Stan aktywów trwałych - 01 Obsz.bilans.
C105: 13.12.2012 | N105: 6
D107: Działgospod. | G107: Poz.bilansowa | H107: K-tobil.w.pocz. | J107: Grupaakt.trw.
G108: 8000000 | H108: 101400 | J108: SW07
A110: SkłAktTrw | B110: Pdnr | D110: Data akt. | E110: Oznaczenie aktywów trwałych | I110: WartPocz | K110: Umorzenie | L110: WartKs | M110: Wal.
A112: 700080 | B112: 0 | D112: 24.06.2005 | E112: SAM OSOB. MERCEDES CLS500 KN 25496 | I112: 398.166,17 | K112: -398.166,17 | L112: 0 | M112: PLN
A113: 700111 | B113: 0 | D113: 17.11.2006 | E113: MERCEDES OSOBOWY KN 33310 | I113: 548.393,71 | K113: -548.393,71 | L113: 0 | M113: PLN
A114: 700114 | B114: 0 | D114: 18.01.2007 | E114: SAMOCH OSOBOWY OPEL ASTRA | I114: 47.474,07 | K114: -47.474,07 | L114: 0 | M114: PLN
A115: 700119 | B115: 0 | D115: 10.04.2007 | E115: SAM 0SOBOWY AUDI KN 35515 | I115: 387.193,50 | K115: -387.193,50 | L115: 0 | M115: PLN
A116: 700121 | B116: 0 | D116: 26.07.2007 | E116: SAM OSOB MERCEDES KN 37387 | I116: 456.014,34 | K116: -456.014,34 | L116: 0 | M116: PLN
A117: 700170 | B117: 0 | D117: 24.05.2011 | E117: Przyczepa ciężarowa THULE 7300TB KN 3287P | I117: 13.587,94 | K117: -4.872,03 | L117: 8.715,91 | M117: PLN
A118: 700172 | B118: 0 | D118: 30.06.2011 | E118: SAM.OSOB PORSCHE KN 60063 | I118: 335.202,50 | K118: -89.387,33 | L118: 245.815,17 | M118: PLN
A119: 700191 | B119: 0 | D119: 26.06.2012 | E119: SAM.OSOB.MERCEDES BENZ S 320 KN 67267 | I119: 25.007,66 | K119: -3.334,35 | L119: 21.673,31 | M119: PLN
A121: Grupa akt. trw. SW07 Środki transportowe | I121: 2.211.039,89 | K121: -1.934.835,50 | L121: 276.204,39 | M121: PLN
A123: K.bil.: WP 0000101400 Środki transportowe | I123: 2.211.039,89 | K123: -1.934.835,50 | L123: 276.204,39 | M123: PLN
C127: 31.10.2012 | F127: Stan aktywów trwałych - 01 Obsz.bilans.
C128: 13.12.2012 | N128: 7
D130: Działgospod. | G130: Poz.bilansowa | H130: K-tobil.w.pocz. | J130: Grupaakt.trw.
G131: 8000000 | H131: 101500 | J131: SW08
A133: SkłAktTrw | B133: Pdnr | D133: Data akt. | E133: Oznaczenie aktywów trwałych | I133: WartPocz | K133: Umorzenie | L133: WartKs | M133: Wal.
A135: 800001 | B135: 0 | D135: 30.12.1992 | E135: SZAFA PANCERNA | I135: 1.058,85 | K135: -1.058,85 | L135: 0 | M135: PLN
A136: 800003 | B136: 0 | D136: 27.02.1999 | E136: BIURKO | I136: 3.708,00 | K136: -3.708,00 | L136: 0 | M136: PLN
A137: 800004 | B137: 0 | D137: 28.02.1999 | E137: BIURKO | I137: 3.708,00 | K137: -3.708,00 | L137: 0 | M137: PLN
A138: 800005 | B138: 0 | D138: 28.02.1999 | E138: BIURKO | I138: 3.708,00 | K138: -3.708,00 | L138: 0 | M138: PLN
A139: 800006 | B139: 0 | D139: 28.02.1999 | E139: BIURKO | I139: 3.708,00 | K139: -3.708,00 | L139: 0 | M139: PLN
A140: 800007 | B140: 0 | D140: 28.02.1999 | E140: WITRYNA | I140: 3.846,00 | K140: -3.846,00 | L140: 0 | M140: PLN
A141: 800008 | B141: 0 | D141: 28.02.1999 | E141: WITRYNA | I141: 3.846,00 | K141: -3.846,00 | L141: 0 | M141: PLN
A142: 800011 | B142: 0 | D142: 18.10.2000 | E142: KLIPSIARKA ELEKTRYCZNA | I142: 12.430,00 | K142: -12.430,00 | L142: 0 | M142: PLN
A143: 800018 | B143: 0 | D143: 28.03.2002 | E143: BIURKO | I143: 4.950,82 | K143: -4.950,82 | L143: 0 | M143: PLN
A144: 800020 | B144: 0 | D144: 10.07.2002 | E144: APARAT CYFROWY CANON DIGITA | I144: 1.638,52 | K144: -1.638,52 | L144: 0 | M144: PLN
A145: 800021 | B145: 0 | D145: 09.09.2002 | E145: MEBLE | I145: 618.04 | K145: -618.04 | L145: 0 | M145: PLN
A146: 800022 | B146: 0 | D146: 11.10.2002 | E146: ZAMRAZARKA | I146: 614.75 | K146: -614.75 | L146: 0 | M146: PLN
A147: 800023 | B147: 0 | D147: 11.10.2002 | E147: KUCHENKA | I147: 118.52 | K147: -118.52 | L147: 0 | M147: PLN
A148: 800025 | B148: 0 | D148: 31.10.2002 | E148: FOTEL | I148: 1.360,66 | K148: -1.360,66 | L148: 0 | M148: PLN
A149: 800026 | B149: 0 | D149: 22.03.2004 | E149: KOPIARKA DP 1510P | I149: 4.290,00 | K149: -4.290,00 | L149: 0 | M149: PLN
A150: 800032 | B150: 0 | D150: 01.12.2006 | E150: KLUCZ ELEKTRYCZNY | I150: 7.000,00 | K150: -7.000,00 | L150: 0 | M150: PLN
A151: 800034 | B151: 0 | D151: 15.03.2007 | E151: TELEWIZOR LG 42 | I151: 3.277,87 | K151: -3.277,87 | L151: 0 | M151: PLN
A152: 800035 | B152: 0 | D152: 19.12.2007 | E152: MATA ALUMINIOWA | I152: 4.710,00 | K152: -4.553,00 | L152: 157 | M152: PLN
A153: 800036 | B153: 0 | D153: 31.12.2007 | E153: LOGO POLMEX | I153: 8.700,00 | K153: -8.410,00 | L153: 290 | M153: PLN
A154: 800037 | B154: 0 | D154: 20.11.2007 | E154: STÓŁ KONFERENCYJNY | I154: 8.640,00 | K154: -8.352,00 | L154: 288 | M154: PLN
A155: 800038 | B155: 0 | D155: 20.11.2007 | E155: SZAFKA MOBILNA Z ZALUZJAMI | I155: 13.100,00 | K155: -12.663,33 | L155: 436.67 | M155: PLN
A156: 800039 | B156: 0 | D156: 31.12.2007 | E156: FOTEL PRESIDENT | I156: 4.225,00 | K156: -4.084,17 | L156: 140.83 | M156: PLN
A157: 800040 | B157: 0 | D157: 31.12.2007 | E157: FOTEL PRESIDENT | I157: 4.225,00 | K157: -4.084,17 | L157: 140.83 | M157: PLN
A158: 800041 | B158: 0 | D158: 31.12.2007 | E158: FOTEL PRESIDENT | I158: 4.225,00 | K158: -4.084,17 | L158: 140.83 | M158: PLN
A159: 800042 | B159: 0 | D159: 31.12.2007 | E159: FOTEL 1 OSOBOWY | I159: 4.300,00 | K159: -4.156,67 | L159: 143.33 | M159: PLN
A160: 800043 | B160: 0 | D160: 31.12.2007 | E160: FOTEL 1 OSOBOWY A 110 | I160: 4.300,00 | K160: -4.156,67 | L160: 143.33 | M160: PLN
A161: 800044 | B161: 0 | D161: 31.12.2007 | E161: FOTEL 1 OSOBOWY A 110 | I161: 4.300,00 | K161: -4.156,67 | L161: 143.33 | M161: PLN
A162: 800045 | B162: 0 | D162: 31.12.2007 | E162: FOTEL 1 OSOBOWY A 110 | I162: 4.300,00 | K162: -4.156,67 | L162: 143.33 | M162: PLN
A163: 800046 | B163: 0 | D163: 31.12.2007 | E163: FOTEL 1 OSOBOWY 110 | I163: 4.300,00 | K163: -4.156,67 | L163: 143.33 | M163: PLN
A164: 800047 | B164: 0 | D164: 31.12.2007 | E164: FOTEL 1 OSOBOWY A 110 | I164: 4.300,00 | K164: -4.156,67 | L164: 143.33 | M164: PLN
A165: 800048 | B165: 0 | D165: 31.12.2007 | E165: FOTEL 1 OSOBOWY A110 | I165: 4.300,00 | K165: -4.156,67 | L165: 143.33 | M165: PLN
A166: 800049 | B166: 0 | D166: 31.12.2007 | E166: FOTEL 1 OSOBOWY A110 | I166: 4.300,00 | K166: -4.156,67 | L166: 143.33 | M166: PLN
A167: 800050 | B167: 0 | D167: 31.12.2007 | E167: KANAPA 3 OSOBOWA | I167: 8.999,00 | K167: -8.699,03 | L167: 299.97 | M167: PLN
A168: 800051 | B168: 0 | D168: 31.12.2007 | E168: FOTEL 1 OSOBOWY 1030 | I168: 5.450,00 | K168: -5.268,33 | L168: 181.67 | M168: PLN
A169: 800052 | B169: 0 | D169: 31.12.2007 | E169: FOTEL 1 OSOBOWY 1030 | I169: 5.450,00 | K169: -5.268,33 | L169: 181.67 | M169: PLN
A170: 800053 | B170: 0 | D170: 31.12.2007 | E170: FOTEL 1 OSOBOWY D110 | I170: 3.672,00 | K170: -3.549,60 | L170: 122.4 | M170: PLN
A171: 800054 | B171: 0 | D171: 31.12.2007 | E171: FOTEL 1 OSOBOWY D 110 | I171: 3.672,00 | K171: -3.549,60 | L171: 122.4 | M171: PLN
A172: 800055 | B172: 0 | D172: 31.12.2007 | E172: STÓŁ KONFERENCYJNY | I172: 13.350,00 | K172: -12.905,00 | L172: 445 | M172: PLN
A173: 800056 | B173: 0 | D173: 31.12.2007 | E173: MEBLE KUCHENNE PARTER | I173: 25.730,00 | K173: -24.872,33 | L173: 857.67 | M173: PLN
A174: 800057 | B174: 0 | D174: 31.12.2007 | E174: MEBLE KUCHENNE SEKRETARIAT | I174: 20.600,00 | K174: -19.913,33 | L174: 686.67 | M174: PLN
A175: 800058 | B175: 0 | D175: 31.12.2007 | E175: MEBLE KUCHENNE PIĘTRO | I175: 28.980,00 | K175: -28.014,00 | L175: 966 | M175: PLN
A176: 800059 | B176: 0 | D176: 31.12.2007 | E176: NAPIS POLMEX | I176: 17.750,00 | K176: -17.158,33 | L176: 591.67 | M176: PLN
A177: 800060 | B177: 0 | D177: 28.01.2008 | E177: KOMPLET FOTELI SELVA KOMPL.FOTELI | I177: 30.231,15 | K177: -28.719,60 | L177: 1.511,55 | M177: PLN
A178: 800061 | B178: 0 | D178: 05.02.2008 | E178: MEBLE KIROWCY MEBLE KIEROWCY | I178: 13.400,00 | K178: -12.506,66 | L178: 893.34 | M178: PLN
A179: 800062 | B179: 0 | D179: 20.02.2008 | E179: REGAť.PRZEJEZDNE ARCHIWUM REGAťY | I179: 47.000,00 | K179: -43.866,66 | L179: 3.133,34 | M179: PLN
A180: 800063 | B180: 0 | D180: 26.02.2008 | E180: ZESTAW FOTELI SMART 8 SZT ZESTAW | I180: 33.606,56 | K180: -31.366,11 | L180: 2.240,45 | M180: PLN
A181: 800064 | B181: 0 | D181: 13.03.2008 | E181: FOTEL SELMA 2 SZTYKI FOTEL SELMA | I181: 10.077,05 | K181: -9.237,30 | L181: 839.75 | M181: PLN
A182: 800065 | B182: 0 | D182: 31.12.2007 | E182: STOŁ KONFERENCYJNY | I182: 9.778,00 | K182: -9.385,34 | L182: 392.66 | M182: PLN
A183: 800066 | B183: 0 | D183: 31.05.2008 | E183: BAREK -ZARZĄD | I183: 18.102,00 | K183: -15.688,40 | L183: 2.413,60 | M183: PLN
A184: 800067 | B184: 0 | D184: 08.07.2008 | E184: LAMPA BIURKOWA MARINER | I184: 4.508,20 | K184: -3.831,97 | L184: 676.23 | M184: PLN
A185: 800068 | B185: 0 | D185: 20.08.2008 | E185: LAMPA BIURKOWA MARINER | I185: 4.508,20 | K185: -3.756,84 | L185: 751.36 | M185: PLN
A186: 800069 | B186: 0 | D186: 08.07.2008 | E186: LAMPA BIURKOWA MARINER | I186: 4.508,20 | K186: -3.831,97 | L186: 676.23 | M186: PLN
A187: 800070 | B187: 0 | D187: 07.11.2008 | E187: STÓŁ DO SALI KONFERENCYJNEJ | I187: 7.000,00 | K187: -5.483,34 | L187: 1.516,66 | M187: PLN
A188: 800071 | B188: 0 | D188: 31.05.2009 | E188: FOTEL JAZZ STRESSLESS | I188: 7.745,90 | K188: -5.293,03 | L188: 2.452,87 | M188: PLN
A189: 800073 | B189: 0 | D189: 16.06.2011 | E189: MEBLE SANTA BARBARA KOMPLET | I189: 4.719,51 | K189: -1.258,53 | L189: 3.460,98 | M189: PLN
A191: Grupa akt. trw. SW08 Pozostałe ST | I191: 470.944,80 | K191: -442.789,86 | L191: 28.154,94 | M191: PLN
A193: K.bil.: WP 0000101500 Inne środki trwałe | I193: 470.944,80 | K193: -442.789,86 | L193: 28.154,94 | M193: PLN
C197: 31.10.2012 | F197: Stan aktywów trwałych - 01 Obsz.bilans.
C198: 13.12.2012 | N198: 8
D200: Działgospod. | G200: Poz.bilansowa | H200: K-tobil.w.pocz. | J200: Grupaakt.trw.
G201: 8000000 | H201: 201000 | J201: WN24
A203: SkłAktTrw | B203: Pdnr | D203: Data akt. | E203: Oznaczenie aktywów trwałych | I203: WartPocz | K203: Umorzenie | L203: WartKs | M203: Wal.
A205: 2400001 | B205: 0 | D205: 14.10.1999 | E205: ZNAK TOWAROWY | I205: 1.720,00 | K205: -1.720,00 | L205: 0 | M205: PLN
A206: 2400002 | B206: 0 | D206: 31.10.2007 | E206: LICENCJA NA PRAWA DOSTEPU DO UZYTK | I206: 22.437,30 | K206: -22.437,30 | L206: 0 | M206: PLN
A208: Grupa akt. trw. WN24 Wartość firmy | I208: 24.157,30 | K208: -24.157,30 | L208: 0 | M208: PLN
A210: K.bil.: WP 0000201000 Wartość firmy | I210: 24.157,30 | K210: -24.157,30 | L210: 0 | M210: PLN
C214: 31.10.2012 | F214: Stan aktywów trwałych - 01 Obsz.bilans.
C215: 13.12.2012 | N215: 9
D217: Działgospod. | G217: Poz.bilansowa | H217: K-tobil.w.pocz. | J217: Grupaakt.trw.
G218: 8000000 | H218: 202000 | J218: WN21
A220: SkłAktTrw | B220: Pdnr | D220: Data akt. | E220: Oznaczenie aktywów trwałych | I220: WartPocz | K220: Umorzenie | L220: WartKs | M220: Wal.
A222: 2100001 | B222: 0 | D222: 31.07.2002 | E222: LICENCJA PRZEWOŹNIKA | I222: 17.218,60 | K222: -17.218,60 | L222: 0 | M222: PLN
A224: Grupa akt. trw. WN21 Koncesje,patenty,lic | I224: 17.218,60 | K224: -17.218,60 | L224: 0 | M224: PLN
C228: 31.10.2012 | F228: Stan aktywów trwałych - 01 Obsz.bilans.
C229: 13.12.2012 | N229: 10
D231: Działgospod. | G231: Poz.bilansowa | H231: K-tobil.w.pocz. | J231: Grupaakt.trw.
G232: 8000000 | H232: 202000 | J232: WN22
A234: SkłAktTrw | B234: Pdnr | D234: Data akt. | E234: Oznaczenie aktywów trwałych | I234: WartPocz | K234: Umorzenie | L234: WartKs | M234: Wal.
A236: 2200002 | B236: 0 | D236: 05.02.1999 | E236: PR.KOMP.'PŁACE' | I236: 738.01 | K236: -738.01 | L236: 0 | M236: PLN
A237: 2200004 | B237: 0 | D237: 17.09.2003 | E237: program tachoscan | I237: 4.850,00 | K237: -4.850,00 | L237: 0 | M237: PLN
A238: 2200005 | B238: 0 | D238: 30.11.2007 | E238: ALTSHOP SYSTEM SZYBKIEJ SPRZEDAZY | I238: 212.628,35 | K238: -212.628,35 | L238: 0 | M238: PLN
A239: 2200006 | B239: 0 | D239: 30.06.2008 | E239: SAP SYTEM ERP | I239: 216.431,17 | K239: -216.431,17 | L239: 0 | M239: PLN
A240: 2200008 | B240: 0 | D240: 27.09.2012 | E240: Program monitorujący 2012 | I240: 4.950,15 | K240: -206.26 | L240: 4.743,89 | M240: PLN
A242: Grupa akt. trw. WN22 Oprogramowanie | I242: 439.597,68 | K242: -434.853,79 | L242: 4.743,89 | M242: PLN
A244: K.bil.: WP 0000202000 Inne WNiP | I244: 456.816,28 | K244: -452.072,39 | L244: 4.743,89 | M244: PLN
A246: Poz. bilansowa 8000000 Nieprzypisane konta | I246: 14.722.899,65 | K246: -4.841.093,68 | L246: 9.881.805,97 | M246: PLN
A248: Dział gospodarczy | I248: 14.722.899,65 | K248: -4.841.093,68 | L248: 9.881.805,97 | M248: PLN
A250: Jednostka gosp. 2000 Polmex | I250: 14.722.899,65 | K250: -4.841.093,68 | L250: 9.881.805,97 | M250: PLN
